fUST/lending_fUST_20260327
["ID","MTS","AMOUNT","RATE_DAILY","PERIOD"]
[418922878,1774559446985,-2230.315306,8.18e-05,2]
[418922879,1774559446994,-773.2413689,8.182e-05,2]
[418922880,1774559447003,-642.43455861,8.237e-05,2]
[418922881,1774559447019,-159.41674094,8.237e-05,2]
[418922882,1774559447028,-238.72336938,8.24e-05,2]
[418922883,1774559447089,-161.85988968,8.24e-05,2]
[418922884,1774559447103,-487.69033373,8.24e-05,2]
[418922885,1774559447112,-284.55560135,8.24e-05,2]
[418922886,1774559447121,-1000.0,8.241e-05,2]
[418922887,1774559447130,-1000.0,8.241e-05,2]
[418922888,1774559447139,-1000.0,8.241e-05,2]
[418922889,1774559447148,-1000.0,8.241e-05,2]
[418922890,1774559447157,-1000.0,8.241e-05,2]
[418922891,1774559447166,-557.5788265,8.262e-05,2]
[418922892,1774559447176,-600.0,8.28e-05,2]
[418922893,1774559447185,-831.51979763,8.292e-05,2]
[418922894,1774559447194,-862.28603014,8.347e-05,2]
[418922895,1774559447204,-816.0,8.4e-05,2]
[418922896,1774559447213,-894.19061326,8.402e-05,2]
[418922897,1774559447222,-160.0,8.413e-05,2]
[418922898,1774559447231,-160.0,8.413e-05,2]
[418922899,1774559447241,-927.27566595,8.457e-05,2]
[418922900,1774559447251,-961.58486559,8.512e-05,2]
[418922901,1774559447260,-997.16350561,8.567e-05,2]
[418922902,1774559447271,-500.0,8.581e-05,2]
[418922903,1774559447281,-700.0,8.589e-05,2]
[418922904,1774559447290,-700.0,8.635e-05,2]
[418922905,1774559447300,-197.395435,8.664e-05,2]
[418922906,1774559447308,-700.0,8.689e-05,2]
[418922907,1774559447318,-2312.83697232,8.728e-05,2]
[418922908,1774559447327,-1500.0,8.788e-05,2]
[418922909,1774559447336,-1092.49108393,8.788e-05,2]
[418922910,1774559447345,-1500.0,8.788e-05,2]
[418922911,1774559447354,-1500.0,8.788e-05,2]
[418922912,1774559447363,-1500.0,8.788e-05,2]
[418922913,1774559447372,-578.20924308,8.81e-05,2]
[418922914,1774559447381,-500.0,8.838e-05,2]
[418922915,1774559447391,-500.0,8.907e-05,2]
[418922916,1774559447402,-196.17500002,9e-05,2]
[418922917,1774559447412,-5000.0,9e-05,2]
[418922918,1774559447421,-5000.0,9e-05,2]
[418922919,1774559447431,-151.457,9.051e-05,2]
[418922920,1774559447439,-1401.0,9.051e-05,2]
[418922921,1774559447448,-642.0,9.051e-05,2]
[418922922,1774559447457,-2195.0,9.051e-05,2]
[418922923,1774559447466,-737.693,9.051e-05,2]
[418922924,1774559447476,-184.0,9.051e-05,2]
[418922925,1774559447485,-535.451,9.051e-05,2]
[418922926,1774559447493,-700.0,9.068e-05,2]
[418922927,1774559447503,-720.0,9.108e-05,2]
[418922928,1774559447512,-500.0,9.25e-05,2]
[418922929,1774559447521,-2398.4119403,9.276e-05,2]
[418922930,1774559447530,-500.0,9.335e-05,2]
[418922931,1774559447539,-500.0,9.335e-05,2]
[418922932,1774559447548,-500.0,9.335e-05,2]
[418922933,1774559447557,-385.70541512,9.335e-05,2]
[418922934,1774559447567,-930.74222316,9.336e-05,2]
[418922935,1774559447576,-2000.0,9.336e-05,2]
[418922936,1774559447585,-2000.0,9.336e-05,2]
[418922937,1774559447594,-2000.0,9.336e-05,2]
[418922938,1774559447605,-639.98341258,9.358e-05,2]
[418922939,1774559447615,-690.0,9.364e-05,2]
[418922940,1774559447624,-690.0,9.364e-05,2]
[418922941,1774559447633,-690.0,9.364e-05,2]
[418922942,1774559447642,-690.0,9.364e-05,2]
[418922943,1774559447651,-690.0,9.364e-05,2]
[418922944,1774559447660,-690.0,9.364e-05,2]
[418922945,1774559447669,-690.0,9.364e-05,2]
[418922946,1774559447679,-690.0,9.364e-05,2]
[418922947,1774559447688,-690.0,9.364e-05,2]
[418922948,1774559447697,-690.0,9.364e-05,2]
[418922949,1774559447706,-166.0,9.364e-05,2]
[418922950,1774559447715,-155.0,9.364e-05,2]
[418922951,1774559447723,-690.0,9.364e-05,2]
[418922952,1774559447733,-155.0,9.364e-05,2]
[418922953,1774559447743,-646.0,9.364e-05,2]
[418922954,1774559447752,-690.0,9.364e-05,2]
[418922955,1774559447761,-166.0,9.364e-05,2]
[418922956,1774559447811,-155.0,9.364e-05,2]
[418922957,1774559447820,-646.0,9.364e-05,2]
[418922958,1774559447829,-690.0,9.364e-05,2]
[418922959,1774559447839,-166.0,9.364e-05,2]
[418922960,1774559447848,-646.0,9.364e-05,2]
[418922961,1774559447859,-155.0,9.364e-05,2]
[418922962,1774559447869,-690.0,9.364e-05,2]
[418922963,1774559447878,-646.0,9.364e-05,2]
[418922964,1774559447887,-690.0,9.364e-05,2]
[418922965,1774559447897,-155.0,9.364e-05,2]
[418922966,1774559447906,-204.57854812,9.364e-05,2]
[418922967,1774559447915,-646.0,9.364e-05,2]
[418922968,1774559447924,-690.0,9.364e-05,2]
[418922969,1774559447933,-155.0,9.364e-05,2]
[418922970,1774559447943,-646.0,9.364e-05,2]
[418922971,1774559447952,-690.0,9.364e-05,2]
[418922972,1774559447961,-646.0,9.364e-05,2]
[418922973,1774559447969,-690.0,9.364e-05,2]
[418922974,1774559447978,-646.0,9.364e-05,2]
[418922975,1774559447987,-690.0,9.364e-05,2]
[418922976,1774559447996,-646.0,9.364e-05,2]
[418922977,1774559448006,-690.0,9.364e-05,2]
[418922978,1774559448016,-646.0,9.364e-05,2]
[418922979,1774559448025,-690.0,9.364e-05,2]
[418922980,1774559448035,-155.0,9.364e-05,2]
[418922981,1774559448045,-646.0,9.364e-05,2]
[418922982,1774559448055,-690.0,9.364e-05,2]
[418922983,1774559448064,-155.0,9.364e-05,2]
[418922984,1774559448073,-646.0,9.364e-05,2]
[418922985,1774559448082,-690.0,9.364e-05,2]
[418922986,1774559448091,-153.54905084,9.364e-05,2]
[418922987,1774559448100,-646.0,9.364e-05,2]
[418922988,1774559448109,-690.0,9.364e-05,2]
[418922989,1774559448118,-339.0,9.364e-05,2]
[418922990,1774559448127,-646.0,9.364e-05,2]
[418922991,1774559448145,-690.0,9.364e-05,2]
[418922992,1774559448162,-339.0,9.364e-05,2]
[418922993,1774559448180,-646.0,9.364e-05,2]
[418922994,1774559448199,-690.0,9.364e-05,2]
[418922995,1774559448217,-339.0,9.364e-05,2]
[418922996,1774559448232,-646.0,9.364e-05,2]
[418922997,1774559448247,-690.0,9.364e-05,2]
[418922998,1774559448264,-339.0,9.364e-05,2]
[418922999,1774559448283,-646.0,9.364e-05,2]
[418923000,1774559448301,-690.0,9.364e-05,2]
[418923001,1774559448313,-339.0,9.364e-05,2]
[418923002,1774559448329,-646.0,9.364e-05,2]
[418923003,1774559448348,-690.0,9.364e-05,2]
[418923004,1774559448364,-339.0,9.364e-05,2]
[418923005,1774559448377,-646.0,9.364e-05,2]
[418923006,1774559448392,-690.0,9.364e-05,2]
[418923007,1774559448406,-339.0,9.364e-05,2]
[418923008,1774559448421,-690.0,9.364e-05,2]
[418923009,1774559448435,-339.0,9.364e-05,2]
[418923010,1774559448450,-741.45924367,9.364e-05,2]
[418923011,1774559448463,-339.0,9.364e-05,2]
[418923012,1774559448479,-646.0,9.364e-05,2]
[418923013,1774559448493,-339.0,9.364e-05,2]
[418923014,1774559448507,-339.0,9.364e-05,2]
[418923015,1774559448521,-646.0,9.364e-05,2]
[418923016,1774559448536,-339.0,9.364e-05,2]
[418923017,1774559448549,-646.0,9.364e-05,2]
[418923018,1774559448563,-339.0,9.364e-05,2]
[418923019,1774559448577,-646.0,9.364e-05,2]
[418923020,1774559448592,-339.0,9.364e-05,2]
[418923021,1774559448607,-646.0,9.364e-05,2]
[418923022,1774559448623,-339.0,9.364e-05,2]
[418923023,1774559448687,-339.0,9.364e-05,2]
[418923024,1774559448707,-646.0,9.364e-05,2]
[418923025,1774559448717,-339.0,9.364e-05,2]
[418923026,1774559448726,-646.0,9.364e-05,2]
[418923027,1774559448736,-339.0,9.364e-05,2]
[418923028,1774559448745,-646.0,9.364e-05,2]
[418923029,1774559448754,-339.0,9.364e-05,2]
[418923030,1774559448764,-466.50052244,9.364e-05,2]
[418923031,1774559448773,-339.0,9.364e-05,2]
[418923032,1774559448782,-339.0,9.364e-05,2]
[418923033,1774559448792,-339.0,9.364e-05,2]
[418923034,1774559448801,-339.0,9.364e-05,2]
[418923035,1774559448812,-339.0,9.364e-05,2]
[418923036,1774559448822,-339.0,9.364e-05,2]
[418923037,1774559448832,-339.0,9.364e-05,2]
[418923038,1774559448844,-339.0,9.364e-05,2]
[418923039,1774559448854,-339.0,9.364e-05,2]
[418923040,1774559448864,-339.0,9.364e-05,2]
[418923041,1774559448873,-339.0,9.364e-05,2]
[418923042,1774559448882,-339.0,9.364e-05,2]
[418923043,1774559448891,-339.0,9.364e-05,2]
[418923044,1774559448900,-339.0,9.364e-05,2]
[418923045,1774559448909,-339.0,9.364e-05,2]
[418923046,1774559448918,-339.0,9.364e-05,2]
[418923047,1774559448927,-339.0,9.364e-05,2]
[418923048,1774559448936,-339.0,9.364e-05,2]
[418923049,1774559448945,-339.0,9.364e-05,2]
[418923050,1774559448955,-339.0,9.364e-05,2]
[418923051,1774559448965,-339.0,9.364e-05,2]
[418923052,1774559448976,-339.0,9.364e-05,2]
[418923053,1774559448986,-339.0,9.364e-05,2]
[418923054,1774559448996,-339.0,9.364e-05,2]
[418923055,1774559449005,-339.0,9.364e-05,2]
[418923056,1774559449014,-339.0,9.364e-05,2]
[418923057,1774559449023,-339.0,9.364e-05,2]
[418923058,1774559449032,-339.0,9.364e-05,2]
[418923059,1774559449041,-339.0,9.364e-05,2]
[418923060,1774559449050,-339.0,9.364e-05,2]
[418923061,1774559449059,-339.0,9.364e-05,2]
[418923062,1774559449068,-339.0,9.364e-05,2]
[418923063,1774559449077,-339.0,9.364e-05,2]
[418923064,1774559449086,-339.0,9.364e-05,2]
[418923065,1774559449096,-339.0,9.364e-05,2]
[418923066,1774559449105,-339.0,9.364e-05,2]
[418923067,1774559449115,-339.0,9.364e-05,2]
[418923068,1774559449124,-339.0,9.364e-05,2]
[418923069,1774559449133,-339.0,9.364e-05,2]
[418923070,1774559449142,-339.0,9.364e-05,2]
[418923071,1774559449151,-339.0,9.364e-05,2]
[418923072,1774559449160,-339.0,9.364e-05,2]
[418923073,1774559449169,-339.0,9.364e-05,2]
[418923074,1774559449179,-339.0,9.364e-05,2]
[418923075,1774559449187,-339.0,9.364e-05,2]
[418923076,1774559449197,-339.0,9.364e-05,2]
[418923077,1774559449207,-339.0,9.364e-05,2]
[418923078,1774559449216,-339.0,9.364e-05,2]
[418923079,1774559449226,-339.0,9.364e-05,2]
[418923080,1774559449235,-339.0,9.364e-05,2]
[418923081,1774559449244,-339.0,9.364e-05,2]
[418923082,1774559449253,-339.0,9.364e-05,2]
[418923083,1774559449262,-339.0,9.364e-05,2]
[418923084,1774559449271,-339.0,9.364e-05,2]
[418923085,1774559449280,-415.82721278,9.364e-05,2]
[418923086,1774559449290,-178.0,9.364e-05,2]
[418923087,1774559449299,-178.0,9.364e-05,2]
[418923088,1774559449309,-180.69937386,9.364e-05,2]
[418923089,1774559449320,-300.16898864,9.364e-05,2]
[418923090,1774559449329,-700.0,9.454e-05,2]
[418923091,1774559449338,-500.0,9.544e-05,2]
[418923092,1774559449347,-500.0,9.608e-05,2]
[418923093,1774559449356,-700.0,9.676e-05,2]
[418923094,1774559449366,-2487.15318209,9.824e-05,2]
[418923095,1774559449375,-3636.25408301,9.854e-05,2]
[418923096,1774559449384,-2500.0,9.884e-05,2]
[418923097,1774559449393,-2500.0,9.884e-05,2]
[418923098,1774559449402,-2500.0,9.884e-05,2]
[418923099,1774559449413,-500.0,9.903e-05,2]
[418923100,1774559449424,-243.33315894,0.0001,2]
[418923101,1774559449434,-350.24167571,0.0001,2]
[418923102,1774559449444,-175.1208378,0.0001,2]
[418923103,1774559449453,-452.33751994,0.0001,2]
[418923104,1774559449463,-219.30952885,0.0001,2]
[418923105,1774559449472,-208.44117164,0.0001,2]
[418923106,1774559449481,-155.15,0.0001,2]
[418923107,1774559449490,-194.24477556,0.0001,2]
[418923108,1774559449542,-156.33087873,0.0001,2]
[418923109,1774559449551,-2579.83056238,0.0001,2]
[418923110,1774559449560,-255.66120873,0.0001,2]
[418923111,1774559449570,-1006.12660435,0.0001,8]
[418923112,1774559449580,-150.77917331,0.0001,2]
[418923113,1774559449589,-1095.25825574,0.0001,2]
[418923114,1774559449598,-151.0,0.0001,2]
[418923115,1774559449608,-151.0,0.0001,2]
[418923116,1774559449617,-151.0,0.0001,2]
[418923117,1774559449627,-151.0,0.0001,2]
[418923118,1774559449636,-180.62328456,0.0001,2]
[418923119,1774559449645,-151.0,0.0001,2]
[418923120,1774559449654,-151.0,0.0001,2]
[418923121,1774559449664,-151.0,0.0001,2]
[418923122,1774559449672,-151.0,0.0001,2]
[418923123,1774559449682,-151.0,0.0001,2]
[418923124,1774559449691,-151.0,0.0001,2]
[418923125,1774559449700,-151.0,0.0001,2]
[418923126,1774559449709,-151.0,0.0001,2]
[418923127,1774559449718,-151.0,0.0001,2]
[418923128,1774559449727,-151.0,0.0001,2]
[418923129,1774559449737,-151.0,0.0001,2]
[418923130,1774559449746,-151.0,0.0001,2]
[418923131,1774559449755,-151.0,0.0001,2]
[418923132,1774559449764,-151.0,0.0001,2]
[418923133,1774559449773,-151.0,0.0001,2]
[418923134,1774559449782,-151.0,0.0001,2]
[418923135,1774559449792,-151.0,0.0001,2]
[418923136,1774559449801,-151.0,0.0001,2]
[418923137,1774559449811,-151.0,0.0001,2]
[418923138,1774559449820,-151.0,0.0001,2]
[418923139,1774559449829,-164.74031715,0.0001,2]
[418923140,1774559449838,-537.24148056,0.0001,2]
[418923141,1774559449848,-864.0,0.00010019,2]
[418923142,1774559449858,-151.0,0.00010055,2]
[418923143,1774559449867,-151.0,0.0001011,2]
[418923144,1774559449876,-151.0,0.00010165,2]
[418923145,1774559449886,-500.0,0.00010168,2]
[418923146,1774559449896,-151.0,0.0001022,2]
[418923147,1774559449905,-274.610124,0.00010275,2]
[418923148,1774559449914,-2579.17784983,0.00010372,2]
[418923149,1774559449924,-58166.31744748,0.000104,2]
[418923150,1774559449934,-250.0,0.00010411,2]
[418923151,1774559449943,-350.24167571,0.00010429,2]
[418923152,1774559449952,-3000.0,0.00010432,2]
[418923153,1774559449961,-1268.97408523,0.00010432,2]
[418923154,1774559449972,-2943.50318197,0.00010432,2]
[418923155,1774559449982,-500.0,0.00010434,2]
[418923156,1774559449991,-151.0,0.00010532,2]
[418923157,1774559450001,-151.0,0.00010532,2]
[418923158,1774559450011,-151.0,0.00010532,2]
[418923159,1774559450021,-175.03062212,0.00010532,2]
[418923160,1774559450030,-800.0,0.00010602,2]
[418923161,1774559450039,-800.0,0.00010603,2]
[418923162,1774559450049,-800.0,0.00010603,2]
[418923163,1774559450059,-800.0,0.00010611,2]
[418923164,1774559450068,-427.6014909,0.00010618,2]
[418923165,1774559450077,-800.0,0.00010623,2]
[418923166,1774559450086,-800.0,0.00010629,2]
[418923167,1774559450095,-800.0,0.00010629,2]
[418923168,1774559450105,-859.39027628,0.00010629,2]
[418923169,1774559450114,-800.0,0.00010632,2]
[418923170,1774559450123,-800.0,0.00010633,2]
[418923171,1774559450132,-800.0,0.00010643,2]
[418923172,1774559450142,-800.0,0.0001065,2]
[418923173,1774559450151,-800.0,0.0001065,2]
[418923174,1774559450160,-800.0,0.00010663,2]
[418923175,1774559450169,-800.0,0.00010664,2]
[418923176,1774559450178,-800.0,0.0001067,2]
[418923177,1774559450187,-800.0,0.00010671,2]
[418923178,1774559450196,-800.0,0.00010679,2]
[418923179,1774559450205,-800.0,0.00010684,2]
[418923180,1774559450214,-800.0,0.00010692,2]
[418923181,1774559450223,-160.0,0.00010694,5]
[418923182,1774559450234,-800.0,0.00010718,2]
[418923183,1774559450243,-800.0,0.00010728,2]
[418923184,1774559450252,-800.0,0.00010758,2]
[418923185,1774559450301,-800.0,0.00010759,2]
[418923186,1774559450310,-800.0,0.00010765,2]
[418923187,1774559450320,-452.33751994,0.00010767,2]
[418923188,1774559450329,-800.0,0.00010781,2]
[418923189,1774559450339,-800.0,0.00010818,2]
[418923190,1774559450347,-800.0,0.00010832,2]
[418923191,1774559450356,-219.30952885,0.00010838,2]
[418923192,1774559450366,-700.0,0.00010842,2]
[418923193,1774559450375,-800.0,0.00010848,2]
[418923194,1774559450384,-800.0,0.00010851,2]
[418923195,1774559450393,-350.24167571,0.00010858,2]
[418923196,1774559450402,-2674.60743027,0.0001092,2]
[418923197,1774559450411,-2245.6490821,0.00010959,2]
[418923198,1774559450420,-15380.3736,0.00010959,2]
[418923199,1774559450430,-151.0,0.00010959,2]
[418923200,1774559450439,-151.0,0.00010959,2]
[418923201,1774559450448,-167.0,0.00010959,2]
[418923202,1774559450458,-235.17212089,0.00010959,2]
[418923203,1774559450468,-151.0,0.00010959,2]
[418923204,1774559450478,-151.0,0.00010959,2]
[418923205,1774559450487,-151.0,0.00010959,2]
[418923206,1774559450496,-151.0,0.00010959,2]
[418923207,1774559450506,-1137.84784743,0.00010959,2]
[418923208,1774559450515,-1137.84784743,0.00010959,2]
[418923209,1774559450524,-1137.84784743,0.00010959,2]
[418923210,1774559450533,-1137.84784743,0.00010959,2]
[418923211,1774559450542,-1137.84784743,0.00010959,2]
[418923212,1774559450551,-1137.84784743,0.00010959,2]
[418923213,1774559450560,-1137.84784743,0.00010959,2]
[418923214,1774559450569,-1137.84784743,0.00010959,2]
[418923215,1774559450578,-1137.84784743,0.00010959,2]
[418923216,1774559450587,-1137.84784743,0.00010959,2]
[418923217,1774559450596,-1137.84784743,0.00010959,2]
[418923218,1774559450606,-1137.84784743,0.00010959,2]
[418923219,1774559450615,-1137.84784743,0.00010959,2]
[418923220,1774559450624,-1137.84784743,0.00010959,2]
[418923221,1774559450633,-500.0,0.00010959,2]
[418923222,1774559450642,-504.15982376,0.00010959,2]
[418923223,1774559450651,-1137.84784743,0.00010959,2]
[418923224,1774559450660,-1137.84784743,0.00010959,2]
[418923225,1774559450669,-1137.84784743,0.00010959,2]
[418923226,1774559450678,-300.0,0.00010973,2]
[418923227,1774559450687,-3500.0,0.0001098,2]
[418923228,1774559450696,-153.56232626,0.00011,2]
[418923229,1774559450705,-151.0,0.00011,2]
[418923230,1774559450715,-151.0,0.00011,2]
[418923231,1774559450724,-151.0,0.00011,2]
[418923232,1774559450734,-151.0,0.00011,2]
[418923233,1774559450743,-151.0,0.00011,2]
[418923234,1774559450752,-151.0,0.00011,2]
[418923235,1774559450761,-1000.0,0.00011021,2]
[418923236,1774559450770,-500.0,0.00011218,2]
[418923237,1774559450779,-350.24167571,0.00011288,7]
[418923238,1774559450789,-151.0,0.000113,2]
[418923239,1774559450798,-700.0,0.00011347,2]
[418923240,1774559450807,-700.0,0.00011387,2]
[418923241,1774559450816,-159.0,0.000114,2]
[418923242,1774559450825,-159.0,0.000114,2]
[418923243,1774559450834,-2773.56790519,0.00011468,2]
[418923244,1774559450843,-1303.0,0.000115,2]
[418923245,1774559450853,-600.0,0.00011521,2]
[418923246,1774559450862,-500.0,0.00011528,2]
[418923247,1774559450871,-4000.0,0.00011528,2]
[418923248,1774559450880,-452.33751994,0.00011533,7]
[418923249,1774559450889,-151.0,0.000116,2]
[418923250,1774559450898,-219.30952885,0.00011677,7]
[418923251,1774559450908,-350.24167571,0.00011717,7]
[418923252,1774559450917,-500.0,0.00011802,2]
[418923253,1774559450926,-40819.0,0.000119,2]
[418923254,1774559450935,-151.0,0.000119,2]
[418923255,1774559450944,-151.0,0.000119,2]
[418923256,1774559450991,-151.0,0.000119,2]
[418923257,1774559451000,-151.0,0.000119,2]
[418923258,1774559451009,-151.0,0.000119,2]
[418923259,1774559451018,-500.0,0.00011948,2]
[418923260,1774559451027,-159.0,0.00012,2]
[418923261,1774559451037,-159.0,0.00012,2]
[418923262,1774559451046,-318.0,0.00012,2]
[418923263,1774559451055,-9238.31395061,0.00012,2]
[418923282,1774560632576,-500.0,5.255e-05,2]
[418923284,1774560632586,-200.499995,5.297e-05,2]
[418923285,1774560632641,-629.41846666,5.297e-05,2]
[418923286,1774560632650,-500.0,5.55e-05,2]
[418923287,1774560632660,-500.0,5.639e-05,2]
[418923288,1774560632669,-500.0,5.697e-05,2]
[418923289,1774560632678,-300.0,5.894e-05,23]
[418923290,1774560632688,-300.0,5.894e-05,14]
[418923291,1774560632697,-300.0,5.894e-05,12]
[418923292,1774560632707,-300.0,5.894e-05,10]
[418923293,1774560632716,-300.0,5.894e-05,27]
[418923294,1774560632727,-300.0,5.894e-05,7]
[418923295,1774560632737,-300.0,5.894e-05,15]
[418923296,1774560632747,-300.0,5.894e-05,16]
[418923297,1774560632757,-500.0,6.215e-05,2]
[418923298,1774560632767,-500.0,6.375e-05,2]
[418923299,1774560632776,-1657.54810813,6.659e-05,2]
[418923300,1774560632785,-500.0,7.341e-05,2]
[418923301,1774560632795,-500.0,7.39e-05,2]
[418923302,1774560632804,-500.0,7.645e-05,2]
[418923303,1774560632814,-74.74208601,7.649e-05,2]
[418923304,1774560632825,-225.25791399,7.649e-05,2]
[418923305,1774560632834,-936.82012549,7.65e-05,2]
[418923306,1774560632844,-223.5635311,7.681e-05,2]
[418923307,1774560632853,-151.0,7.7e-05,120]
[418923308,1774560632862,-151.0,7.7e-05,120]
[418923309,1774560632872,-151.0,7.7e-05,120]
[418923310,1774560632881,-151.0,7.7e-05,120]
[418923311,1774560632890,-151.0,7.7e-05,120]
[418923312,1774560632900,-84.31776717,7.7e-05,120]
[418923313,1774560632911,-66.68223283,7.7e-05,120]
[418923314,1774560632921,-151.0,7.7e-05,120]
[418923315,1774560632987,-151.0,7.7e-05,120]
[418923316,1774560633001,-151.0,7.7e-05,120]
[418923317,1774560633011,-151.0,7.7e-05,120]
[418923318,1774560633020,-537.6845,7.917e-05,2]
[418923319,1774560633030,-2150.738,7.917e-05,2]
[418923320,1774560633040,-557.5788265,7.972e-05,2]
[418923321,1774560633049,-578.20924308,8.027e-05,2]
[418923322,1774560633059,-599.60298507,8.082e-05,2]
[418923323,1774560633068,-621.78829552,8.137e-05,2]
[418923324,1774560633078,-644.79446246,8.192e-05,2]
[418923325,1774560633087,-5000.0,8.219e-05,2]
[418923326,1774560633097,-7481.30050644,8.219e-05,2]
[418923327,1774560633108,-4775.273715,8.219e-05,2]
[418923328,1774560633120,-304.23737856,8.219e-05,2]
[418923329,1774560633129,-668.65185757,8.247e-05,2]
[418923330,1774560633138,-641.75,8.247e-05,2]
[418923331,1774560633149,-693.3919763,8.302e-05,2]
[418923332,1774560633158,-1347.82401928,8.319e-05,2]
[418923343,1774560638846,-167.0,5.894e-05,9]
[418923345,1774560638856,-436.485178,8.319e-05,2]
[418923348,1774560638866,-719.04747942,8.357e-05,2]
[418923350,1774560638875,-745.65223616,8.412e-05,2]
[418923352,1774560638884,-2230.315306,8.465e-05,2]
[418923354,1774560638894,-500.0,8.467e-05,2]
[418923356,1774560638903,-773.2413689,8.467e-05,2]
[418923358,1774560638913,-801.85129955,8.522e-05,2]
[418923361,1774560638922,-831.51979763,8.577e-05,2]
[418923364,1774560638931,-151.0,8.588e-05,2]
[418923367,1774560638941,-500.0,8.617e-05,2]
[418923370,1774560638950,-862.28603014,8.632e-05,2]
[418923371,1774560638959,-500.0,8.64e-05,2]
[418923373,1774560638968,-500.0,8.728e-05,2]
[418923375,1774560638977,-500.0,8.741e-05,2]
[418923377,1774560638986,-196.17500001,9e-05,2]
[418923379,1774560638995,-2312.83697232,9.013e-05,2]
[418923381,1774560639004,-500.0,9.015e-05,2]
[418923383,1774560639013,-196.17500001,9.1e-05,2]
[418923385,1774560639022,-160.0,9.218e-05,2]
[418923387,1774560639031,-160.0,9.218e-05,2]
[418923389,1774560639040,-500.0,9.289e-05,2]
[418923391,1774560639049,-2195.0,9.312e-05,2]
[418923393,1774560639059,-642.0,9.312e-05,2]
[418923395,1774560639068,-1401.0,9.312e-05,2]
[418923397,1774560639079,-439.0,9.312e-05,2]
[418923399,1774560639088,-552.0,9.312e-05,2]
[418923401,1774560639098,-184.0,9.312e-05,2]
[418923403,1774560639107,-172.37684368,9.312e-05,2]
[418923406,1774560639121,-500.0,9.384e-05,2]
[418923408,1774560639131,-2398.4119403,9.561e-05,2]
[418923410,1774560639141,-500.0,9.563e-05,2]
[418923411,1774560639152,-151.0,9.589e-05,2]
[418923413,1774560639163,-151.0,9.589e-05,2]
[418923415,1774560639172,-151.0,9.589e-05,2]
[418923417,1774560639182,-151.0,9.589e-05,2]
[418923419,1774560639191,-412.146,9.633e-05,2]
[418923422,1774560639200,-344.0,9.683e-05,2]
[418923423,1774560639259,-500.0,9.683e-05,2]
[418923424,1774560639268,-500.0,9.837e-05,2]
[418923425,1774560639277,-1918.65860014,9.978e-05,2]
[418923426,1774560639286,-500.0,0.00010012,2]
[418923427,1774560639296,-2487.15318209,0.00010109,2]
[418923428,1774560639306,-500.0,0.00010111,2]
[418923429,1774560639315,-500.0,0.00010385,2]
[418923430,1774560639324,-500.0,0.00010428,2]
[418923431,1774560639334,-764.61468353,0.00010437,2]
[418923432,1774560639343,-500.0,0.00010589,2]
[418923433,1774560639352,-500.0,0.00010602,2]
[418923434,1774560639364,-2579.17784983,0.00010657,2]
[418923435,1774560639373,-500.0,0.00010659,2]
[418923436,1774560639382,-344.0,0.00010683,2]
[418923437,1774560639391,-473.1518462,0.00010859,2]
[418923438,1774560639400,-500.0,0.00010933,2]
[418923439,1774560639408,-500.0,0.00010956,2]
[418923440,1774560639418,-500.0,0.00010957,2]
[418923441,1774560639427,-500.0,0.00010957,2]
[418923442,1774560639436,-319.99379059,0.00010957,2]
[418923443,1774560639445,-5000.0,0.00010958,2]
[418923444,1774560639454,-151.0,0.00010958,2]
[418923445,1774560639464,-151.0,0.00010958,2]
[418923446,1774560639473,-151.0,0.00010958,2]
[418923447,1774560639483,-151.0,0.00010958,2]
[418923448,1774560639492,-151.0,0.00010959,2]